[Event "Early-Titled-Tuesday-Blitz-April-02-2024"]
[Site "Chess.com"]
[Date "2024.04.02"]
[Round "9"]
[White "PonyQueen07"]
[Black "Englishman_18"]
[Result "0-1"]
[WhiteElo "2138"]
[BlackElo "2282"]
[TimeControl "180+1"]
[EndTime "9:45:33 PDT"]
[Termination "Englishman_18 won by checkmate"]

1. c4 {[%clk 0:03:00.9]} 1... Nf6 {[%clk 0:02:59.2]} 2. Nc3 {[%clk 0:03:00.7]}
2... d5 {[%clk 0:02:58.1]} 3. cxd5 {[%clk 0:03:00.5]} 3... Nxd5 {[%clk 0:02:58]}
4. g3 {[%clk 0:02:59.3]} 4... c5 {[%clk 0:02:57.7]} 5. Bg2 {[%clk 0:02:59.2]}
5... Nc7 {[%clk 0:02:58.2]} 6. Nf3 {[%clk 0:02:58.2]} 6... Nc6 {[%clk
0:02:57.9]} 7. O-O {[%clk 0:02:58.5]} 7... e5 {[%clk 0:02:57.7]} 8. d3 {[%clk
0:02:56.8]} 8... Be7 {[%clk 0:02:57.3]} 9. b3 {[%clk 0:02:56.6]} 9... O-O {[%clk
0:02:56.7]} 10. Bb2 {[%clk 0:02:56.7]} 10... b6 {[%clk 0:02:47.4]} 11. Rc1
{[%clk 0:02:33.3]} 11... Be6 {[%clk 0:02:44.7]} 12. Nd2 {[%clk 0:02:18]} 12...
Qd7 {[%clk 0:02:41.2]} 13. Nf3 {[%clk 0:01:53.7]} 13... Bh3 {[%clk 0:02:38.8]}
14. Ne4 {[%clk 0:01:15.7]} 14... Bxg2 {[%clk 0:02:35.2]} 15. Kxg2 {[%clk
0:01:16.6]} 15... Qe6 {[%clk 0:02:19.5]} 16. Ned2 {[%clk 0:00:52]} 16... f5
{[%clk 0:02:12.5]} 17. Nc4 {[%clk 0:00:48.9]} 17... Bf6 {[%clk 0:02:12]} 18. e4
{[%clk 0:00:42.7]} 18... Rad8 {[%clk 0:02:05.3]} 19. Qe2 {[%clk 0:00:34.3]}
19... f4 {[%clk 0:01:50.6]} 20. a3 {[%clk 0:00:22.9]} 20... Nb5 {[%clk
0:01:49.8]} 21. a4 {[%clk 0:00:20.2]} 21... Nbd4 {[%clk 0:01:49.5]} 22. Nxd4
{[%clk 0:00:20.6]} 22... Nxd4 {[%clk 0:01:49.3]} 23. Bxd4 {[%clk 0:00:19.6]}
23... Rxd4 {[%clk 0:01:49.1]} 24. f3 {[%clk 0:00:14.9]} 24... fxg3 {[%clk
0:01:44.6]} 25. hxg3 {[%clk 0:00:14.9]} 25... Bg5 {[%clk 0:01:44.8]} 26. Rcd1
{[%clk 0:00:12.9]} 26... a6 {[%clk 0:01:41.4]} 27. Rb1 {[%clk 0:00:09.5]} 27...
Rfd8 {[%clk 0:01:38.9]} 28. Rfd1 {[%clk 0:00:08]} 28... b5 {[%clk 0:01:36]} 29.
Ne3 {[%clk 0:00:07.8]} 29... Bxe3 {[%clk 0:01:34.4]} 30. Qxe3 {[%clk 0:00:07.9]}
30... Qd6 {[%clk 0:01:32.3]} 31. axb5 {[%clk 0:00:07.4]} 31... axb5 {[%clk
0:01:32.3]} 32. Kf2 {[%clk 0:00:02.9]} 32... Rxd3 {[%clk 0:01:26.8]} 33. Rxd3
{[%clk 0:00:02.4]} 33... Qxd3 {[%clk 0:01:26.8]} 34. Qxd3 {[%clk 0:00:01.6]}
34... Rxd3 {[%clk 0:01:26.8]} 35. Ke2 {[%clk 0:00:01.9]} 35... Rd8 {[%clk
0:01:25.9]} 36. Rc1 {[%clk 0:00:01.5]} 36... Rc8 {[%clk 0:01:25.7]} 37. f4
{[%clk 0:00:01.7]} 37... Kf7 {[%clk 0:01:24.6]} 38. Kf3 {[%clk 0:00:01.2]} 38...
Ke6 {[%clk 0:01:23.8]} 39. f5+ {[%clk 0:00:01.6]} 39... Kf6 {[%clk 0:01:20.3]}
40. Rd1 {[%clk 0:00:02]} 40... c4 {[%clk 0:01:18.5]} 41. bxc4 {[%clk 0:00:02]}
41... bxc4 {[%clk 0:01:18.7]} 42. Rc1 {[%clk 0:00:02.7]} 42... Ke7 {[%clk
0:01:17.8]} 43. Rc3 {[%clk 0:00:02.7]} 43... Kd6 {[%clk 0:01:18.1]} 44. g4
{[%clk 0:00:02.7]} 44... Kc5 {[%clk 0:01:18.3]} 45. g5 {[%clk 0:00:03.1]} 45...
Kd4 {[%clk 0:01:17.9]} 46. Rc1 {[%clk 0:00:03.3]} 46... c3 {[%clk 0:01:17.8]}
47. Kg4 {[%clk 0:00:02.7]} 47... Kxe4 {[%clk 0:01:15.8]} 48. Re1+ {[%clk
0:00:03]} 48... Kd4 {[%clk 0:01:15.4]} 49. f6 {[%clk 0:00:03.3]} 49... gxf6
{[%clk 0:01:11.5]} 50. gxf6 {[%clk 0:00:03.7]} 50... Kd3 {[%clk 0:01:10.6]} 51.
Kf5 {[%clk 0:00:02.5]} 51... Kd2 {[%clk 0:01:07.1]} 52. Rh1 {[%clk 0:00:02]}
52... c2 {[%clk 0:01:07.5]} 53. Kxe5 {[%clk 0:00:01.4]} 53... c1=Q {[%clk
0:01:05.3]} 54. Rxc1 {[%clk 0:00:01.4]} 54... Rxc1 {[%clk 0:01:05.1]} 55. f7
{[%clk 0:00:01.4]} 55... Rf1 {[%clk 0:01:05.1]} 56. Ke6 {[%clk 0:00:01.9]} 56...
h5 {[%clk 0:01:05.2]} 57. Ke7 {[%clk 0:00:02.2]} 57... h4 {[%clk 0:01:05.1]} 58.
f8=Q {[%clk 0:00:03.1]} 58... Rxf8 {[%clk 0:01:05]} 59. Kxf8 {[%clk 0:00:04]}
59... h3 {[%clk 0:01:05.4]} 60. Kf7 {[%clk 0:00:04.9]} 60... h2 {[%clk
0:01:05.4]} 61. Kf6 {[%clk 0:00:05.8]} 61... h1=Q {[%clk 0:01:05.3]} 62. Kf5
{[%clk 0:00:06.7]} 62... Qf3+ {[%clk 0:01:04.9]} 63. Ke6 {[%clk 0:00:07.6]}
63... Qf4 {[%clk 0:01:04.8]} 64. Kd5 {[%clk 0:00:08]} 64... Qe3 {[%clk 0:01:05]}
65. Kc6 {[%clk 0:00:08.9]} 65... Qd4 {[%clk 0:01:05.2]} 66. Kb5 {[%clk
0:00:09.4]} 66... Qc3 {[%clk 0:01:05.5]} 67. Ka6 {[%clk 0:00:10.3]} 67... Qb4
{[%clk 0:01:05.9]} 68. Ka7 {[%clk 0:00:10.7]} 68... Kd3 {[%clk 0:01:06.2]} 69.
Ka8 {[%clk 0:00:11.6]} 69... Kd4 {[%clk 0:01:06.8]} 70. Ka7 {[%clk 0:00:12.5]}
70... Kc5 {[%clk 0:01:07.4]} 71. Ka8 {[%clk 0:00:13.4]} 71... Kc6 {[%clk
0:01:08]} 72. Ka7 {[%clk 0:00:13.7]} 72... Qb7# {[%clk 0:01:08.4]} 0-1

[Event "Early-Titled-Tuesday-Blitz-April-02-2024"]
[Site "Chess.com"]
[Date "2024.04.02"]
[Round "9"]
[White "martinmena"]
[Black "chess_sharparchitect"]
[Result "0-1"]
[WhiteElo "2163"]
[BlackElo "2279"]
[TimeControl "180+1"]
[EndTime "9:45:33 PDT"]
[Termination "chess_sharparchitect won on time"]

1. c4 {[%clk 0:03:00.9]} 1... e5 {[%clk 0:02:56.9]} 2. g3 {[%clk 0:03:00.7]}
2... Nc6 {[%clk 0:02:49.7]} 3. Bg2 {[%clk 0:03:00.1]} 3... Nf6 {[%clk
0:02:49.9]} 4. Nc3 {[%clk 0:02:58.2]} 4... Bb4 {[%clk 0:02:49.2]} 5. e4 {[%clk
0:02:53.5]} 5... a5 {[%clk 0:02:25.9]} 6. Nge2 {[%clk 0:02:48.6]} 6... Bc5
{[%clk 0:02:21.3]} 7. O-O {[%clk 0:02:43]} 7... d6 {[%clk 0:02:21.2]} 8. h3
{[%clk 0:02:41]} 8... Be6 {[%clk 0:02:12.4]} 9. d3 {[%clk 0:02:40.9]} 9... Qd7
{[%clk 0:02:09.9]} 10. Kh2 {[%clk 0:02:40.8]} 10... h5 {[%clk 0:02:07.5]} 11. f4
{[%clk 0:02:38.7]} 11... Ng4+ {[%clk 0:01:49.3]} 12. Kh1 {[%clk 0:02:30.1]}
12... exf4 {[%clk 0:01:41.1]} 13. gxf4 {[%clk 0:02:27.2]} 13... Nf2+ {[%clk
0:01:20.5]} 14. Rxf2 {[%clk 0:02:25.5]} 14... Bxf2 {[%clk 0:01:20.4]} 15. Qf1
{[%clk 0:02:20.6]} 15... Bd4 {[%clk 0:01:11.8]} 16. f5 {[%clk 0:02:19]} 16...
Bxc3 {[%clk 0:01:02.7]} 17. Nxc3 {[%clk 0:02:15.2]} 17... Ne5 {[%clk 0:00:55.6]}
18. fxe6 {[%clk 0:01:56.5]} 18... fxe6 {[%clk 0:00:55.6]} 19. d4 {[%clk
0:01:53.6]} 19... Nc6 {[%clk 0:00:54.8]} 20. Qd3 {[%clk 0:01:47.7]} 20... O-O-O
{[%clk 0:00:53.7]} 21. Bg5 {[%clk 0:01:47]} 21... Rdf8 {[%clk 0:00:53]} 22. h4
{[%clk 0:01:35]} 22... Rf2 {[%clk 0:00:45.7]} 23. Be3 {[%clk 0:01:30.7]} 23...
Rxb2 {[%clk 0:00:44.1]} 24. Bh3 {[%clk 0:01:26.2]} 24... Nb4 {[%clk 0:00:36.2]}
25. Qf1 {[%clk 0:01:10.7]} 25... Kb8 {[%clk 0:00:28.1]} 26. Rb1 {[%clk
0:01:02.9]} 26... Rc2 {[%clk 0:00:26.1]} 27. Ne2 {[%clk 0:00:50.5]} 27... Qe7
{[%clk 0:00:22.6]} 28. Bg5 {[%clk 0:00:48.9]} 28... Qe8 {[%clk 0:00:22.9]} 29.
Qd1 {[%clk 0:00:44]} 29... Rxa2 {[%clk 0:00:21.8]} 30. Nf4 {[%clk 0:00:31.7]}
30... Rf8 {[%clk 0:00:21.5]} 31. Ra1 {[%clk 0:00:27.1]} 31... Rxa1 {[%clk
0:00:20.5]} 32. Qxa1 {[%clk 0:00:28]} 32... Qc6 {[%clk 0:00:20.1]} 33. Qe1
{[%clk 0:00:08.9]} 33... Qxc4 {[%clk 0:00:19.7]} 34. Qe2 {[%clk 0:00:08.9]}
34... Qc1+ {[%clk 0:00:18.8]} 35. Kg2 {[%clk 0:00:07.9]} 35... Rxf4 {[%clk
0:00:18.4]} 36. Bxf4 {[%clk 0:00:05.6]} 36... Qxf4 {[%clk 0:00:18.5]} 37. Bxe6
{[%clk 0:00:05.8]} 37... Qxh4 {[%clk 0:00:17.6]} 38. Bh3 {[%clk 0:00:04.1]}
38... Qg5+ {[%clk 0:00:15.8]} 39. Kh2 {[%clk 0:00:04.1]} 39... Qf4+ {[%clk
0:00:14.6]} 40. Kg2 {[%clk 0:00:03.9]} 40... Nc6 {[%clk 0:00:14.5]} 41. e5
{[%clk 0:00:02.7]} 41... Nxd4 {[%clk 0:00:13.9]} 42. Qxh5 {[%clk 0:00:02.3]}
42... Qe4+ {[%clk 0:00:13.2]} 0-1

[Event "Early-Titled-Tuesday-Blitz-April-02-2024"]
[Site "Chess.com"]
[Date "2024.04.02"]
[Round "9"]
[White "KorolDimitriy75"]
[Black "frequentblunders"]
[Result "0-1"]
[WhiteElo "2360"]
[BlackElo "2231"]
[TimeControl "180+1"]
[EndTime "9:45:35 PDT"]
[Termination "frequentblunders won on time"]

1. d4 {[%clk 0:03:00.9]} 1... e6 {[%clk 0:03:00.8]} 2. c4 {[%clk 0:03:00.6]}
2... c5 {[%clk 0:03:01.7]} 3. d5 {[%clk 0:03:00.4]} 3... Nf6 {[%clk 0:03:01.5]}
4. Nc3 {[%clk 0:03:00.1]} 4... d6 {[%clk 0:02:59.8]} 5. Nf3 {[%clk 0:02:59.6]}
5... Be7 {[%clk 0:02:59.8]} 6. e4 {[%clk 0:02:57.3]} 6... O-O {[%clk 0:02:59.4]}
7. h3 {[%clk 0:02:56.3]} 7... a6 {[%clk 0:02:57.2]} 8. a4 {[%clk 0:02:55.2]}
8... exd5 {[%clk 0:02:54.2]} 9. cxd5 {[%clk 0:02:56.1]} 9... Re8 {[%clk
0:02:51.3]} 10. Bd3 {[%clk 0:02:55.7]} 10... Nbd7 {[%clk 0:02:44.9]} 11. O-O
{[%clk 0:02:55.7]} 11... Ne5 {[%clk 0:02:44.5]} 12. Nxe5 {[%clk 0:02:54.9]}
12... dxe5 {[%clk 0:02:45.4]} 13. a5 {[%clk 0:02:43]} 13... h6 {[%clk
0:02:43.2]} 14. Be3 {[%clk 0:02:42.4]} 14... Bd6 {[%clk 0:02:41.1]} 15. Qe2
{[%clk 0:02:40]} 15... Bd7 {[%clk 0:02:31.4]} 16. Rfc1 {[%clk 0:01:54.3]} 16...
Qe7 {[%clk 0:02:16.1]} 17. Na4 {[%clk 0:01:40]} 17... Bxa4 {[%clk 0:02:11.2]}
18. Rxa4 {[%clk 0:01:40.9]} 18... Rec8 {[%clk 0:02:07.7]} 19. Rac4 {[%clk
0:01:33.8]} 19... Nd7 {[%clk 0:01:45.1]} 20. b4 {[%clk 0:01:25.1]} 20... Kh7
{[%clk 0:01:38.7]} 21. Qc2 {[%clk 0:00:47]} 21... b5 {[%clk 0:01:29.3]} 22. axb6
{[%clk 0:00:45.3]} 22... Nxb6 {[%clk 0:01:28.7]} 23. Rxc5 {[%clk 0:00:12.6]}
23... Bxc5 {[%clk 0:01:20.1]} 24. bxc5 {[%clk 0:00:13.5]} 24... Nd7 {[%clk
0:00:59.9]} 25. c6 {[%clk 0:00:10.2]} 25... Rab8 {[%clk 0:00:19.2]} 26. Qa4
{[%clk 0:00:07.6]} 26... Nf6 {[%clk 0:00:06.2]} 27. Qxa6 {[%clk 0:00:04.6]}
27... Qb4 {[%clk 0:00:04.9]} 28. Qc4 {[%clk 0:00:04.1]} 28... Qb2 {[%clk
0:00:03.1]} 29. Kh2 {[%clk 0:00:03]} 29... g6 {[%clk 0:00:02.5]} 30. Qc3 {[%clk
0:00:01.8]} 30... Qxc3 {[%clk 0:00:02.5]} 31. Rxc3 {[%clk 0:00:02.7]} 31... Rb2
{[%clk 0:00:03]} 32. Ba6 {[%clk 0:00:01.9]} 32... Rc7 {[%clk 0:00:02.7]} 33. Bb7
{[%clk 0:00:02.4]} 33... Rb4 {[%clk 0:00:02.7]} 34. f3 {[%clk 0:00:01.3]} 34...
Rb2 {[%clk 0:00:03]} 35. Bc5 {[%clk 0:00:01.3]} 35... Nh5 {[%clk 0:00:02.5]} 36.
Bd6 {[%clk 0:00:01.4]} 36... Rcxb7 {[%clk 0:00:02.6]} 37. cxb7 {[%clk
0:00:01.5]} 37... Nf4 {[%clk 0:00:03.5]} 0-1

[Event "Early-Titled-Tuesday-Blitz-April-02-2024"]
[Site "Chess.com"]
[Date "2024.04.02"]
[Round "9"]
[White "Pasmendjambvirgulptipon98"]
[Black "MarceloPlaya"]
[Result "1-0"]
[WhiteElo "2323"]
[BlackElo "2372"]
[TimeControl "180+1"]
[EndTime "9:45:35 PDT"]
[Termination "Pasmendjambvirgulptipon98 won on time"]

1. Nf3 {[%clk 0:02:47.4]} 1... e6 {[%clk 0:02:59.5]} 2. g3 {[%clk 0:02:46.8]}
2... d5 {[%clk 0:02:59.2]} 3. Bg2 {[%clk 0:02:47.1]} 3... Nf6 {[%clk 0:02:58.3]}
4. O-O {[%clk 0:02:47.6]} 4... c5 {[%clk 0:02:57.6]} 5. c4 {[%clk 0:02:46.9]}
5... d4 {[%clk 0:02:56.5]} 6. e3 {[%clk 0:02:47]} 6... Nc6 {[%clk 0:02:55.3]} 7.
d3 {[%clk 0:02:46.8]} 7... e5 {[%clk 0:02:51.1]} 8. exd4 {[%clk 0:02:45.8]} 8...
exd4 {[%clk 0:02:50.9]} 9. Re1+ {[%clk 0:02:35.5]} 9... Be7 {[%clk 0:02:50.2]}
10. Nbd2 {[%clk 0:02:27.7]} 10... O-O {[%clk 0:02:48.8]} 11. a3 {[%clk
0:02:26.1]} 11... Bg4 {[%clk 0:02:45.4]} 12. h3 {[%clk 0:02:24.6]} 12... Bh5
{[%clk 0:02:44.5]} 13. Ne4 {[%clk 0:02:15.3]} 13... Nxe4 {[%clk 0:02:38.1]} 14.
Rxe4 {[%clk 0:02:16.2]} 14... Bg6 {[%clk 0:02:36.6]} 15. Re1 {[%clk 0:02:14.2]}
15... Re8 {[%clk 0:02:32.4]} 16. Bf4 {[%clk 0:02:12.1]} 16... Bf6 {[%clk
0:02:30.4]} 17. Qd2 {[%clk 0:02:04.8]} 17... Qd7 {[%clk 0:02:27.4]} 18. b4
{[%clk 0:02:02.1]} 18... Qf5 {[%clk 0:01:54.3]} 19. b5 {[%clk 0:01:23.3]} 19...
Ne7 {[%clk 0:00:50.9]} 20. g4 {[%clk 0:01:22.8]} 20... Qxd3 {[%clk 0:00:46.2]}
21. g5 {[%clk 0:01:22.5]} 21... Qxc4 {[%clk 0:00:36.3]} 22. gxf6 {[%clk
0:01:19.8]} 22... gxf6 {[%clk 0:00:36.2]} 23. a4 {[%clk 0:01:03]} 23... Nd5
{[%clk 0:00:28.9]} 24. Bh6 {[%clk 0:00:51.9]} 24... Nc3 {[%clk 0:00:22.3]} 25.
Qf4 {[%clk 0:00:51.6]} 25... Re6 {[%clk 0:00:15.5]} 26. Rxe6 {[%clk 0:00:41.3]}
26... Qxe6 {[%clk 0:00:14.4]} 27. Re1 {[%clk 0:00:41.6]} 27... Qf5 {[%clk
0:00:13.1]} 28. Qd6 {[%clk 0:00:20.3]} 28... d3 {[%clk 0:00:08.1]} 29. Nh4
{[%clk 0:00:20.1]} 29... Qh5 {[%clk 0:00:06.5]} 30. Qf4 {[%clk 0:00:12.9]} 30...
Ne2+ {[%clk 0:00:04.6]} 31. Rxe2 {[%clk 0:00:12]} 31... dxe2 {[%clk 0:00:04.8]}
32. Nf3 {[%clk 0:00:12.4]} 32... Re8 {[%clk 0:00:03.2]} 33. Ne1 {[%clk
0:00:12.2]} 33... Qe5 {[%clk 0:00:03]} 34. Qh4 {[%clk 0:00:08.6]} 34... Qa1
{[%clk 0:00:01.9]} 35. f3 {[%clk 0:00:08]} 35... c4 {[%clk 0:00:01.5]} 36. Kh2
{[%clk 0:00:07.2]} 1-0

[Event "Early-Titled-Tuesday-Blitz-April-02-2024"]
[Site "Chess.com"]
[Date "2024.04.02"]
[Round "9"]
[White "shimastream"]
[Black "Yaacovn"]
[Result "1-0"]
[WhiteElo "3013"]
[BlackElo "2857"]
[TimeControl "180+1"]
[EndTime "9:45:37 PDT"]
[Termination "shimastream won on time"]

1. e4 {[%clk 0:03:00.9]} 1... c6 {[%clk 0:02:57.4]} 2. d4 {[%clk 0:03:00.3]}
2... d5 {[%clk 0:02:58.3]} 3. Nc3 {[%clk 0:03:00.8]} 3... dxe4 {[%clk
0:02:58.5]} 4. Nge2 {[%clk 0:03:01.2]} 4... Nf6 {[%clk 0:02:59.4]} 5. Ng3 {[%clk
0:03:01.4]} 5... Bg4 {[%clk 0:02:58.9]} 6. Be2 {[%clk 0:03:01.3]} 6... Bxe2
{[%clk 0:02:58.9]} 7. Qxe2 {[%clk 0:03:02.2]} 7... e6 {[%clk 0:02:58.7]} 8.
Ncxe4 {[%clk 0:03:01.1]} 8... Nxe4 {[%clk 0:02:56.8]} 9. Nxe4 {[%clk 0:03:00.7]}
9... Nd7 {[%clk 0:02:56.8]} 10. Bf4 {[%clk 0:02:59.5]} 10... Nf6 {[%clk
0:02:56]} 11. Nxf6+ {[%clk 0:02:59.7]} 11... Qxf6 {[%clk 0:02:55.3]} 12. Be5
{[%clk 0:03:00.3]} 12... Qg5 {[%clk 0:02:42]} 13. O-O {[%clk 0:02:58.9]} 13...
Be7 {[%clk 0:02:41.7]} 14. Rad1 {[%clk 0:02:58.8]} 14... O-O {[%clk 0:02:38.8]}
15. Rd3 {[%clk 0:02:58.9]} 15... Bf6 {[%clk 0:02:34.5]} 16. f4 {[%clk 0:02:59]}
16... Qf5 {[%clk 0:02:22.8]} 17. g4 {[%clk 0:02:51.7]} 17... Qg6 {[%clk
0:02:22.4]} 18. Rg3 {[%clk 0:02:43]} 18... Bxe5 {[%clk 0:02:18.7]} 19. dxe5
{[%clk 0:02:42.4]} 19... Rad8 {[%clk 0:02:16.1]} 20. h4 {[%clk 0:02:36.6]} 20...
f5 {[%clk 0:02:09.1]} 21. h5 {[%clk 0:02:14.2]} 21... Qe8 {[%clk 0:02:06.9]} 22.
g5 {[%clk 0:02:15.1]} 22... Rd5 {[%clk 0:02:04.6]} 23. g6 {[%clk 0:02:13.7]}
23... Qd7 {[%clk 0:01:55.4]} 24. h6 {[%clk 0:02:10.6]} 24... gxh6 {[%clk
0:01:53.6]} 25. Qh5 {[%clk 0:02:10.2]} 25... Rd2 {[%clk 0:01:23]} 26. Qxh6
{[%clk 0:01:52.5]} 26... Qd4+ {[%clk 0:01:22.1]} 27. Kh1 {[%clk 0:01:50.2]}
27... Qe4+ {[%clk 0:01:11.7]} 28. Rgf3 {[%clk 0:01:47.7]} 28... Rd7 {[%clk
0:01:02.5]} 29. Rf2 {[%clk 0:01:18.2]} 29... Rg7 {[%clk 0:00:46.6]} 30. Rg2
{[%clk 0:01:05.6]} 30... hxg6 {[%clk 0:00:23.5]} 31. Rfg3 {[%clk 0:00:43.7]}
31... Rh7 {[%clk 0:00:14.3]} 32. Rxg6+ {[%clk 0:00:43.8]} 32... Kh8 {[%clk
0:00:14.7]} 33. Kg1 {[%clk 0:00:32.8]} 33... Qe1+ {[%clk 0:00:10.7]} 34. Kh2
{[%clk 0:00:32.9]} 34... Rd8 {[%clk 0:00:08.2]} 35. Rxe6 {[%clk 0:00:24.5]}
35... Qe3 {[%clk 0:00:06.1]} 36. Rgg6 {[%clk 0:00:04]} 36... Qxf4+ {[%clk
0:00:05.7]} 37. Kh3 {[%clk 0:00:04.8]} 37... Qf3+ {[%clk 0:00:04.2]} 38. Kh4
{[%clk 0:00:04.6]} 38... Rd4+ {[%clk 0:00:04.2]} 39. Kg5 {[%clk 0:00:05]} 39...
Rg4+ {[%clk 0:00:04.2]} 40. Kf6 {[%clk 0:00:05.4]} 40... Rxg6+ {[%clk
0:00:02.3]} 41. Qxg6 {[%clk 0:00:05.2]} 1-0

[Event "Early-Titled-Tuesday-Blitz-April-02-2024"]
[Site "Chess.com"]
[Date "2024.04.02"]
[Round "9"]
[White "GrotBchess"]
[Black "Bilan_Danila"]
[Result "0-1"]
[WhiteElo "2439"]
[BlackElo "2590"]
[TimeControl "180+1"]
[EndTime "9:45:38 PDT"]
[Termination "Bilan_Danila won by checkmate"]

1. e4 {[%clk 0:03:00.9]} 1... c6 {[%clk 0:02:54.2]} 2. d4 {[%clk 0:03:00.3]}
2... d5 {[%clk 0:02:53.4]} 3. Nd2 {[%clk 0:03:00.4]} 3... dxe4 {[%clk
0:02:50.8]} 4. Nxe4 {[%clk 0:03:01.3]} 4... Bf5 {[%clk 0:02:51.2]} 5. Ng3 {[%clk
0:03:01]} 5... Bg6 {[%clk 0:02:51.1]} 6. c3 {[%clk 0:03:01.4]} 6... Nd7 {[%clk
0:02:48.3]} 7. Nh3 {[%clk 0:03:00.9]} 7... e5 {[%clk 0:02:47.6]} 8. dxe5 {[%clk
0:02:56.9]} 8... Nxe5 {[%clk 0:02:48.5]} 9. Qe2 {[%clk 0:02:57.1]} 9... Qe7
{[%clk 0:02:43]} 10. Nf4 {[%clk 0:02:54.5]} 10... Nf6 {[%clk 0:02:22.2]} 11. Bd2
{[%clk 0:02:25.6]} 11... Bd3 {[%clk 0:01:56.1]} 12. Qe3 {[%clk 0:02:20.3]} 12...
Nfg4 {[%clk 0:01:54.4]} 13. Nxd3 {[%clk 0:01:54.7]} 13... Nxe3 {[%clk
0:01:34.3]} 14. Bxe3 {[%clk 0:01:55.6]} 14... Nxd3+ {[%clk 0:01:25.8]} 15. Bxd3
{[%clk 0:01:56.5]} 15... Qc7 {[%clk 0:01:15.8]} 16. O-O {[%clk 0:01:48.8]} 16...
Bd6 {[%clk 0:01:15]} 17. Nf5 {[%clk 0:01:36.5]} 17... Bxh2+ {[%clk 0:01:11.4]}
18. Kh1 {[%clk 0:01:35.1]} 18... Be5 {[%clk 0:01:11.9]} 19. f4 {[%clk
0:01:25.2]} 19... Bf6 {[%clk 0:01:10.5]} 20. Bc5 {[%clk 0:01:18.4]} 20... O-O-O
{[%clk 0:01:05]} 21. Be2 {[%clk 0:01:12.5]} 21... Rd5 {[%clk 0:01:01.8]} 22. Bg1
{[%clk 0:00:54.9]} 22... Rxf5 {[%clk 0:00:57.7]} 23. Bg4 {[%clk 0:00:54.4]}
23... g6 {[%clk 0:00:54.5]} 24. Rae1 {[%clk 0:00:50.4]} 24... Kb8 {[%clk
0:00:49.2]} 25. Bxf5 {[%clk 0:00:50.4]} 25... gxf5 {[%clk 0:00:50.1]} 26. Re3
{[%clk 0:00:49.6]} 26... b6 {[%clk 0:00:44.6]} 27. Rh3 {[%clk 0:00:44.2]} 27...
c5 {[%clk 0:00:42]} 28. Rh5 {[%clk 0:00:44]} 28... Qd7 {[%clk 0:00:40.5]} 29.
Rf3 {[%clk 0:00:35.1]} 29... Re8 {[%clk 0:00:33]} 30. Rxh7 {[%clk 0:00:34.3]}
30... Re1 {[%clk 0:00:30.9]} 31. Kh2 {[%clk 0:00:34]} 31... Re2 {[%clk
0:00:24.2]} 32. Rg3 {[%clk 0:00:26.9]} 32... Kb7 {[%clk 0:00:23.4]} 33. Be3
{[%clk 0:00:21.1]} 33... Rxb2 {[%clk 0:00:21]} 34. Bc1 {[%clk 0:00:15.7]} 34...
Rxa2 {[%clk 0:00:20]} 35. Rg8 {[%clk 0:00:15]} 35... Rc2 {[%clk 0:00:18.3]} 36.
Rf8 {[%clk 0:00:14.7]} 36... Qd6 {[%clk 0:00:11.2]} 37. Rhxf7+ {[%clk
0:00:11.5]} 37... Ka6 {[%clk 0:00:10.3]} 38. Rxf6 {[%clk 0:00:10.4]} 38... Qd3
{[%clk 0:00:09.8]} 39. Ba3 {[%clk 0:00:07.7]} 39... Qe4 {[%clk 0:00:06.1]} 40.
Rg8 {[%clk 0:00:06.1]} 40... Qxf4+ {[%clk 0:00:06.2]} 41. Kh3 {[%clk 0:00:02.7]}
41... Rxc3+ {[%clk 0:00:06.2]} 42. g3 {[%clk 0:00:02.6]} 42... Qe4 {[%clk
0:00:06.3]} 43. Bb2 {[%clk 0:00:02]} 43... Qh1# {[%clk 0:00:06.4]} 0-1

[Event "Early-Titled-Tuesday-Blitz-April-02-2024"]
[Site "Chess.com"]
[Date "2024.04.02"]
[Round "9"]
[White "yaguigor"]
[Black "SlavenPastar"]
[Result "1-0"]
[WhiteElo "2646"]
[BlackElo "2546"]
[TimeControl "180+1"]
[EndTime "9:45:39 PDT"]
[Termination "yaguigor won by resignation"]

1. e4 {[%clk 0:02:55.7]} 1... b6 {[%clk 0:02:59.8]} 2. d4 {[%clk 0:02:53.6]}
2... Bb7 {[%clk 0:03:00.3]} 3. Bd3 {[%clk 0:02:53.8]} 3... Nf6 {[%clk
0:03:00.7]} 4. Nd2 {[%clk 0:02:50.9]} 4... e6 {[%clk 0:03:00.5]} 5. Ngf3 {[%clk
0:02:50.1]} 5... d5 {[%clk 0:03:00.9]} 6. e5 {[%clk 0:02:49.6]} 6... Ne4 {[%clk
0:03:01.4]} 7. Qe2 {[%clk 0:02:48.1]} 7... Nxd2 {[%clk 0:03:01.7]} 8. Bxd2
{[%clk 0:02:49]} 8... c5 {[%clk 0:03:02.6]} 9. c3 {[%clk 0:02:47.8]} 9... a5
{[%clk 0:03:03.2]} 10. O-O {[%clk 0:02:18.7]} 10... Be7 {[%clk 0:03:02.1]} 11.
dxc5 {[%clk 0:02:13]} 11... bxc5 {[%clk 0:03:01.4]} 12. c4 {[%clk 0:02:12.6]}
12... O-O {[%clk 0:02:46.2]} 13. Rfd1 {[%clk 0:02:08.2]} 13... d4 {[%clk
0:02:45.8]} 14. Bf4 {[%clk 0:02:01.4]} 14... Nd7 {[%clk 0:02:27.1]} 15. Be4
{[%clk 0:01:58.3]} 15... Rb8 {[%clk 0:02:14.4]} 16. b3 {[%clk 0:01:56]} 16... a4
{[%clk 0:02:07.9]} 17. Rd3 {[%clk 0:01:54.3]} 17... h6 {[%clk 0:01:49.2]} 18.
Nd2 {[%clk 0:01:51.9]} 18... Qc7 {[%clk 0:01:40.1]} 19. Rg3 {[%clk 0:01:46.2]}
19... Bxe4 {[%clk 0:01:20.6]} 20. Nxe4 {[%clk 0:01:31.7]} 20... Nxe5 {[%clk
0:00:41.4]} 21. Nxc5 {[%clk 0:01:30.8]} 21... Qxc5 {[%clk 0:00:21.3]} 22. Bxe5
{[%clk 0:01:29.8]} 22... g6 {[%clk 0:00:21.3]} 23. Bxb8 {[%clk 0:01:28]} 23...
Rxb8 {[%clk 0:00:22.2]} 24. Rd1 {[%clk 0:01:26.3]} 24... Bf6 {[%clk 0:00:20.8]}
25. Qe4 {[%clk 0:01:20.5]} 25... Bg7 {[%clk 0:00:18.6]} 26. h4 {[%clk
0:01:19.5]} 26... h5 {[%clk 0:00:18.1]} 27. Rf3 {[%clk 0:01:16.2]} 27... Rd8
{[%clk 0:00:14.1]} 28. g4 {[%clk 0:01:09.2]} 28... hxg4 {[%clk 0:00:13.3]} 29.
Qxg4 {[%clk 0:01:10.1]} 29... e5 {[%clk 0:00:07.3]} 30. h5 {[%clk 0:01:08.4]}
30... Rd6 {[%clk 0:00:05.3]} 31. Rg3 {[%clk 0:01:04.1]} 31... Re6 {[%clk
0:00:03.6]} 32. Qe4 {[%clk 0:00:59.4]} 32... f5 {[%clk 0:00:01.4]} 33. Qa8+
{[%clk 0:00:58.9]} 33... Qf8 {[%clk 0:00:02.3]} 34. Qxf8+ {[%clk 0:00:57.5]}
34... Kxf8 {[%clk 0:00:02.5]} 35. Rxg6 {[%clk 0:00:57]} 35... Rxg6+ {[%clk
0:00:02.8]} 36. hxg6 {[%clk 0:00:56.9]} 36... axb3 {[%clk 0:00:03]} 37. axb3
{[%clk 0:00:56.2]} 37... e4 {[%clk 0:00:03.6]} 38. f3 {[%clk 0:00:47.2]} 38...
d3 {[%clk 0:00:03.3]} 39. fxe4 {[%clk 0:00:46.5]} 39... fxe4 {[%clk 0:00:04.2]}
40. Re1 {[%clk 0:00:41]} 40... d2 {[%clk 0:00:03.8]} 41. Rd1 {[%clk 0:00:40.7]}
41... Bh6 {[%clk 0:00:03.8]} 42. Kf1 {[%clk 0:00:39.3]} 42... Ke7 {[%clk
0:00:04.5]} 43. Ke2 {[%clk 0:00:39.2]} 43... e3 {[%clk 0:00:04.6]} 44. Rg1
{[%clk 0:00:38.1]} 44... Kf6 {[%clk 0:00:04.5]} 45. g7 {[%clk 0:00:36.5]} 45...
Bxg7 {[%clk 0:00:04.5]} 46. Kxe3 {[%clk 0:00:36.8]} 46... Bh6+ {[%clk
0:00:05.4]} 47. Ke2 {[%clk 0:00:36.7]} 47... Ke5 {[%clk 0:00:05.7]} 48. Rd1
{[%clk 0:00:36.2]} 48... Kd4 {[%clk 0:00:04.8]} 49. Rxd2+ {[%clk 0:00:36.8]}
49... Bxd2 {[%clk 0:00:05.7]} 50. Kxd2 {[%clk 0:00:36.4]} 1-0